bitfinex-derivatives/quotes_SOLF0:USTF0_20241206
["timestamp","ask_amount","ask_price","bid_price","bid_amount"]
[1733527860161,2.1157,235.92,235.85,1.3167]
[1733527860162,2.58,235.98,235.85,1.3167]
[1733527860363,2.58,235.98,235.84,1.3915]
[1733527860556,10.34537635,235.96,235.84,1.3915]
[1733527861662,2.1161,235.87,235.84,1.3915]
[1733527862469,2.116,235.89,235.84,13.85317635]
[1733527862773,2.58,235.92,235.84,11.73687635]
[1733527863072,2.116,235.88,235.84,11.73687635]
[1733527863460,2.1159,235.9,235.84,11.73687635]
[1733527863663,2.1159,235.9,235.85,2.1162]
[1733527863859,2.58,235.92,235.84,11.73687635]
[1733527864068,2.1157,235.92,235.84,11.73687635]
[1733527864270,2.1157,235.92,235.86,2.1161]
[1733527864572,2.1157,235.92,235.84,11.73687635]
[1733527864867,2.1157,235.92,235.87,12.46137635]
[1733527865167,2.46,235.96,235.87,10.34537635]
[1733527867070,2.116,235.89,235.84,13.85317635]
[1733527867263,2.116,235.89,235.84,11.73687635]
[1733527867670,2.1158,235.91,235.86,2.1161]
[1733527867868,2.46,235.96,235.87,10.34537635]
[1733527868068,2.46,235.96,235.9,10.34537635]
[1733527868674,10.34537635,236.04,235.91,2.1157]
[1733527868867,2.46,236.02,235.9,10.34537635]
[1733527869078,2.46,236.02,235.93,10.34537635]
[1733527869572,2.1147,236.02,235.97,2.1151]
[1733527870164,2.1148,236.01,235.97,2.1151]
[1733527870369,2.46,236.04,235.98,2.1151]
[1733527870968,10.34537635,236.1,236.0,2.1149]
[1733527871168,2.46,236.06,235.96,10.34537635]
[1733527871566,2.46,236.06,235.94,1.2724]
[1733527872269,2.46,236.06,235.96,10.34537635]
[1733527873275,2.46,236.06,235.94,1.2724]
[1733527873976,2.46,236.06,235.96,10.34537635]
[1733527874377,10.34537635,236.1,235.96,10.34537635]
[1733527874683,10.34537635,236.1,235.98,2.115]
[1733527874684,2.46,236.09,235.98,2.115]
[1733527874886,2.46,236.09,235.96,10.34537635]
[1733527875079,7.7686567,236.08,235.95,2.1153]
[1733527875274,2.46,236.09,235.94,1.2724]
[1733527875479,7.77005629,236.08,235.94,1.2724]
[1733527875678,2.46,236.09,235.94,1.2724]
[1733527876080,2.46,236.09,235.96,10.34537635]
[1733527876780,2.1145,236.04,235.99,2.1149]
[1733527876979,2.46,236.09,235.96,10.34537635]
[1733527877173,2.46,236.09,235.98,2.1151]
[1733527877379,2.46,236.09,235.96,10.34537635]
[1733527878084,2.46,236.09,235.99,2.115]
[1733527878277,2.46,236.09,235.96,10.34537635]
[1733527878783,2.46,236.08,235.96,10.34537635]
[1733527879783,2.1145,236.05,235.96,10.34537635]
[1733527880174,2.1145,236.05,235.94,1.2724]
[1733527880175,2.46,236.08,236.0,2.1148]
[1733527880377,2.46,236.08,235.99,10.34537635]
[1733527880781,2.1144,236.06,236.0,2.1149]
[1733527881384,2.1143,236.07,236.01,2.1148]
[1733527881579,2.46,236.08,235.99,10.34537635]
[1733527882685,2.46,236.08,235.96,10.34537635]
[1733527883284,10.34537635,236.07,235.97,2.1151]
[1733527883675,10.34537635,236.07,235.95,1.2664]
[1733527883880,10.34537635,236.04,235.94,1.2724]
[1733527884589,2.1151,235.99,235.94,1.2724]
[1733527885174,2.1151,235.98,235.94,1.2724]
[1733527885687,2.115,235.99,235.94,1.2724]
[1733527885980,2.46,236.01,235.94,1.2724]
[1733527886479,2.46,236.01,235.97,2.1152]
[1733527887076,2.46,236.01,235.96,10.34537635]
[1733527887279,4.5744,236.06,235.99,10.34537635]
[1733527887479,2.46,236.06,235.99,10.34537635]
[1733527888985,2.46,236.06,235.96,10.34537635]
[1733527889186,2.46,236.06,235.94,2.5444]
[1733527889587,2.46,236.06,235.96,2.1152]
[1733527889880,2.46,236.06,235.94,2.5444]
[1733527890881,2.1148,236.01,235.94,2.5444]
[1733527891382,2.46,236.06,235.94,2.5444]
[1733527891383,2.1147,236.02,235.94,2.5444]
[1733527892381,2.1146,236.04,235.94,2.5444]
[1733527892581,10.34537635,236.1,235.96,10.34537635]
[1733527892783,2.46,236.09,235.96,10.34537635]
[1733527893284,2.1145,236.05,236.01,2.1148]
[1733527893978,2.1145,236.04,236.0,2.1149]
[1733527895688,2.46,236.09,235.96,10.34537635]
[1733527895881,2.1145,236.05,236.01,2.1147]
[1733527896077,2.46,236.09,235.96,10.34537635]
[1733527896683,2.1145,236.05,236.0,2.1148]
[1733527898294,2.1145,236.05,236.01,2.1148]
[1733527899089,4.2253,236.26,236.04,10.34537635]
[1733527899294,10.34537635,236.23,236.1,10.34537635]
[1733527899493,7.78863552,236.22,236.1,10.34537635]
[1733527899797,7.78863552,236.22,236.11,2.1138]
[1733527900196,7.78863552,236.22,236.1,10.34537635]
[1733527900390,2.38,236.21,236.1,10.34537635]
[1733527900590,7.78863552,236.2,236.13,10.34537635]
[1733527900791,2.38,236.22,236.13,10.34537635]
[1733527900998,2.38,236.24,236.19,2.1132]
[1733527901196,2.38,236.25,236.16,10.34537635]
[1733527901492,2.38,236.27,236.22,2.1129]
[1733527901890,2.38,236.28,236.22,2.1129]
[1733527902095,4.4924,236.28,236.22,2.1129]
[1733527902289,2.38,236.28,236.23,2.1128]
[1733527902894,2.38,236.29,236.21,2.1129]
[1733527903088,2.38,236.29,236.18,10.34537635]
[1733527904197,2.1128,236.24,236.18,10.34537635]
[1733527904603,2.1124,236.28,236.21,10.34537635]
[1733527905300,2.38,236.32,236.21,10.34537635]
[1733527906103,2.1123,236.29,236.22,2.1129]
[1733527906295,2.1123,236.29,236.21,10.34537635]
[1733527907595,2.1123,236.29,236.23,2.1128]
[1733527907897,2.1124,236.28,236.21,10.34537635]
[1733527908299,2.1124,236.28,236.23,2.1128]
[1733527909504,2.1123,236.3,236.23,2.1128]
[1733527909699,2.38,236.32,236.24,2.1127]
[1733527910708,2.1123,236.29,236.24,2.1127]
[1733527911007,2.38,236.35,236.22,1.2811]
[1733527911309,2.1122,236.31,236.22,11.62647635]
[1733527911807,2.1122,236.31,236.26,2.1126]
[1733527913511,2.1122,236.31,236.22,11.62647635]
[1733527913699,2.38,236.34,236.25,10.34537635]
[1733527914305,2.1118,236.34,236.29,2.1123]
[1733527914504,2.38,236.36,236.25,10.34537635]
[1733527914703,2.38,236.36,236.26,2.7032]
[1733527914898,2.1118,236.35,236.29,2.1123]
[1733527915104,2.1118,236.35,236.26,2.7032]
[1733527915300,1.3669,236.41,236.28,10.34537635]
[1733527915500,1.3669,236.41,236.26,2.7032]
[1733527915501,2.1117,236.37,236.31,10.34537635]
[1733527916211,2.1117,236.37,236.31,12.45737635]
[1733527916413,2.1117,236.37,236.31,10.34537635]
[1733527916605,2.1116,236.38,236.28,10.34537635]
[1733527916806,2.38,236.41,236.31,2.1121]
[1733527917003,2.38,236.41,236.28,10.34537635]
[1733527917407,2.38,236.41,236.31,2.1121]
[1733527918209,2.1117,236.36,236.32,2.112]
[1733527918608,2.38,236.41,236.31,10.34537635]
[1733527918813,1.358,236.49,236.31,10.34537635]
[1733527918814,10.34537635,236.47,236.31,10.34537635]
[1733527919004,2.38,236.46,236.34,10.34537635]
[1733527919513,2.38,236.46,236.35,2.1117]
[1733527919814,2.38,236.46,236.34,10.34537635]
[1733527920213,2.1113,236.4,236.34,10.34537635]
[1733527920716,2.1114,236.39,236.35,2.1117]
[1733527920905,2.38,236.46,236.32,1.3686]
[1733527921112,10.34537635,236.44,236.32,1.3686]
[1733527921706,2.1118,236.35,236.32,1.3686]
[1733527921911,10.34537635,236.47,236.32,1.3686]
[1733527922116,2.38,236.46,236.32,1.3686]
[1733527922311,10.34537635,236.41,236.32,1.3686]
[1733527922518,2.38,236.4,236.28,10.34537635]
[1733527923516,2.38,236.4,236.27,1.2813]
[1733527923517,10.34537635,236.38,236.27,1.2813]
[1733527923713,10.34537635,236.38,236.26,1.3446]
[1733527923915,1.2754,236.39,236.22,10.34537635]
[1733527923916,10.34537635,236.35,236.22,10.34537635]
[1733527924121,2.32,236.34,236.19,10.34537635]
[1733527924321,10.34537635,236.32,236.19,10.34537635]
[1733527924720,2.1124,236.29,236.19,12.45857635]
[1733527925025,2.32,236.28,236.19,12.45857635]
[1733527925322,2.1126,236.26,236.2,2.1131]
[1733527925621,2.32,236.28,236.2,2.1131]
[1733527926516,2.1127,236.25,236.21,2.113]
[1733527926717,2.32,236.29,236.22,10.34537635]
[1733527928023,4.4323,236.29,236.24,2.1127]
[1733527928820,2.32,236.29,236.21,10.34537635]
[1733527929420,4.4324,236.29,236.21,10.34537635]
[1733527930422,10.34537635,236.38,236.24,10.34537635]
[1733527930623,2.32,236.37,236.24,10.34537635]
[1733527931823,2.112,236.32,236.24,10.34537635]
[1733527932622,2.112,236.32,236.27,2.1124]
[1733527932923,2.32,236.37,236.24,10.34537635]
[1733527933126,2.32,236.36,236.3,2.1122]
[1733527933320,2.32,236.36,236.24,10.34537635]
[1733527934427,2.1122,236.3,236.26,2.1125]
[1733527934727,2.32,236.36,236.24,10.34537635]
[1733527934926,10.34537635,236.34,236.21,10.34537635]
[1733527935136,10.34537635,236.34,236.18,10.34537635]
[1733527935421,2.1127,236.25,236.21,2.1129]
[1733527935621,10.34537635,236.38,236.18,10.34537635]
[1733527935622,2.32,236.28,236.18,10.34537635]
[1733527935822,2.32,236.28,236.17,3.8243]
[1733527935823,2.32,236.27,236.17,3.8243]
[1733527936030,2.1127,236.24,236.17,5.9376]
[1733527936223,2.32,236.27,236.17,3.8243]
[1733527936626,2.32,236.26,236.17,3.8243]
[1733527937727,2.32,236.26,236.17,5.9377]
[1733527938230,10.34537635,236.25,236.1,10.34537635]
[1733527938430,2.32,236.26,236.1,10.34537635]
[1733527938431,10.34537635,236.22,236.1,10.34537635]
[1733527938627,2.32,236.21,236.08,1.2727]
[1733527938828,2.1136,236.15,236.1,2.114]
[1733527939028,2.32,236.16,236.08,1.2727]
[1733527939333,2.114,236.1,236.05,1.3304]
[1733527939535,4.434,236.1,236.05,1.3304]
[1733527940930,2.32,236.1,236.06,2.1143]
[1733527941230,2.32,236.13,236.05,1.3304]
[1733527942031,4.4337,236.13,236.05,1.3304]
[1733527942930,286.0,236.36,236.11,10.34537635]
[1733527943129,10.34537635,236.27,236.12,1.4017]
[1733527943433,2.32,236.26,236.12,1.4017]
[1733527943733,2.1131,236.2,236.13,2.1136]
[1733527943932,2.32,236.2,236.14,10.34537635]
[1733527945534,2.32,236.2,236.16,2.1134]
[1733527946425,2.32,236.2,236.12,1.4017]
[1733527947935,4.433,236.21,236.12,1.4017]
[1733527948236,4.433,236.21,236.14,10.34537635]
[1733527948827,2.32,236.21,236.17,2.1134]
[1733527949030,2.1129,236.23,236.14,10.34537635]
[1733527949236,2.32,236.23,236.14,10.34537635]
[1733527949435,2.32,236.24,236.2,2.113]
[1733527949836,2.32,236.24,236.15,1.4014]
[1733527950039,2.1129,236.23,236.15,1.4014]
[1733527950337,2.32,236.24,236.15,1.4014]
[1733527951038,2.1133,236.19,236.15,1.4014]
[1733527951238,2.32,236.24,236.12,1.4017]
[1733527951739,2.1133,236.19,236.12,1.4017]
[1733527952841,2.1133,236.18,236.14,2.1136]
[1733527953038,2.32,236.24,236.14,2.1136]
[1733527953243,2.1132,236.19,236.14,2.1136]
[1733527954343,2.32,236.24,236.14,2.1136]
[1733527954543,2.1133,236.18,236.14,2.1136]
[1733527954944,2.32,236.24,236.14,2.1136]
[1733527955137,2.1132,236.19,236.14,2.1136]
[1733527955337,2.32,236.24,236.17,2.1133]
[1733527955740,10.34537635,236.32,236.17,10.34537635]
[1733527955943,2.32,236.31,236.21,2.113]
[1733527956242,2.1128,236.23,236.17,10.34537635]
[1733527956634,2.1129,236.22,236.19,2.1132]
[1733527957139,2.32,236.25,236.19,2.1132]
[1733527957937,2.1128,236.23,236.2,2.1131]
[1733527958236,2.32,236.25,236.17,10.34537635]
[1733527959044,4.4327,236.25,236.2,2.113]
[1733527960644,2.32,236.25,236.2,2.113]
[1733527960947,2.1128,236.24,236.2,2.113]
[1733527961345,2.1128,236.23,236.2,2.113]
[1733527962241,2.1128,236.24,236.2,2.113]
[1733527963543,2.1129,236.22,236.18,2.1132]
[1733527963748,2.32,236.25,236.14,10.34537635]
[1733527964646,2.1131,236.21,236.18,2.1133]
[1733527964846,2.1131,236.21,236.14,10.34537635]
[1733527965247,2.32,236.25,236.18,2.1132]
[1733527965248,2.1129,236.23,236.18,2.1132]
[1733527966050,2.32,236.25,236.18,2.1132]
[1733527966247,2.113,236.22,236.18,2.1132]
[1733527966550,2.32,236.25,236.18,2.1132]
[1733527967152,2.1129,236.23,236.19,2.1132]
[1733527967348,2.32,236.25,236.14,10.34537635]
[1733527968753,2.1129,236.22,236.18,2.1132]
[1733527969346,2.32,236.25,236.14,10.34537635]
[1733527969646,2.1129,236.23,236.17,10.34537635]
[1733527969846,2.1129,236.23,236.18,2.1132]
[1733527970147,2.113,236.21,236.14,12.66537635]
[1733527970747,2.113,236.21,236.17,2.1133]
[1733527972054,2.1131,236.2,236.14,12.66537635]
[1733527972246,2.32,236.25,236.12,1.4017]
[1733527972444,10.34537635,236.23,236.12,1.4017]
[1733527972748,10.34537635,236.19,236.09,1.4014]
[1733527972949,2.32,236.18,236.02,12.66537635]
[1733527973148,10.34537635,236.13,236.03,2.68620736]
[1733527973347,2.32,236.12,236.0,1.3654]
[1733527973843,10.34537635,236.1,236.0,1.3654]
[1733527974045,10.34537635,236.1,235.99,1.3842]
[1733527974446,10.34537635,236.1,235.96,12.46057635]
[1733527974654,2.1144,236.06,235.96,12.46057635]
[1733527974955,2.32,236.05,235.94,2.1154]
[1733527975151,2.32,236.04,235.94,2.1154]
[1733527976247,2.1148,236.02,235.95,2.1153]
[1733527976450,2.32,236.04,235.95,10.34537635]
[1733527976845,2.32,236.04,235.98,2.1151]
[1733527978153,2.32,236.06,235.98,10.34537635]
[1733527978354,2.1143,236.07,235.98,10.34537635]
[1733527980154,2.1143,236.07,236.01,2.1148]
[1733527980352,2.32,236.1,236.01,2.1148]
[1733527980654,2.1144,236.06,236.01,2.1148]
[1733527982352,4.4342,236.08,236.01,2.1148]
[1733527982551,2.32,236.08,235.98,10.34537635]
[1733527982954,2.3,236.09,236.04,2.1145]
[1733527983152,10.34537635,236.16,236.01,10.34537635]
[1733527983353,2.3,236.15,236.04,10.34537635]
[1733527983656,2.3,236.15,236.07,2.1142]
[1733527984158,4.4136,236.14,236.04,10.34537635]
[1733527984358,2.3,236.14,236.09,2.1141]
[1733527985255,4.4137,236.14,236.09,2.1141]
[1733527985854,10.34537635,236.19,236.04,10.34537635]
[1733527986056,2.1135,236.16,236.04,10.34537635]
[1733527986256,2.1135,236.16,236.07,10.34537635]
[1733527986650,2.1135,236.16,236.11,2.1139]
[1733527986848,2.1135,236.16,236.07,10.34537635]
[1733527987254,1.3515,236.25,235.98,3.8885]
[1733527987255,11.69687635,236.25,236.1,10.34537635]
[1733527987453,10.34537635,236.25,236.1,10.34537635]
[1733527987762,10.34537635,236.25,236.16,10.34537635]
[1733527987763,2.3,236.25,236.16,10.34537635]
[1733527988250,4.4127,236.25,236.19,2.1131]
[1733527988853,4.4124,236.28,236.21,2.1129]
[1733527989060,2.3,236.28,236.19,10.34537635]
[1733527989754,4.4122,236.3,236.22,10.34537635]
[1733527989958,1.3859,236.39,236.22,10.34537635]
[1733527990151,10.07683013,236.38,236.25,10.34537635]
[1733527990357,2.1117,236.36,236.29,2.1122]
[1733527990661,2.3,236.38,236.28,10.34537635]
[1733527990855,1.3859,236.39,236.28,10.34537635]
[1733527991048,2.3,236.39,236.28,10.34537635]
[1733527991760,4.4114,236.39,236.32,2.112]
[1733527992157,2.1115,236.38,236.32,2.112]
[1733527992855,2.3,236.39,236.28,12.45767635]
[1733527993055,2.3,236.39,236.25,12.64537635]
[1733527993257,10.34537635,236.37,236.25,10.34537635]
[1733527993452,2.1122,236.31,236.25,12.45797635]
[1733527993862,2.3,236.34,236.23,14.34547635]
[1733527994058,2.112,236.32,236.26,2.1126]
[1733527995364,2.112,236.32,236.27,2.1125]
[1733527995955,2.3,236.34,236.23,14.34547635]
[1733527996456,12.64537635,236.34,236.2,10.34537635]
[1733527997056,10.34537635,236.31,236.18,1.2844]
[1733527997465,10.34537635,236.28,236.14,10.34537635]
[1733527997661,2.1131,236.21,236.15,2.1135]
[1733527997864,12.64537635,236.22,236.09,1.3699]
[1733527998068,2.3,236.21,236.09,1.3699]
[1733527998258,2.3,236.21,236.11,2.1139]
[1733528000066,2.1138,236.12,236.08,10.34537635]
[1733528000467,2.3,236.15,236.06,1.2822]
[1733528000774,2.1138,236.13,236.06,1.2822]
[1733528000964,2.3,236.15,236.06,1.2822]
[1733528001367,2.3,236.15,236.03,1.3535]
[1733528002669,1.3171,236.21,236.06,16.5216109]
[1733528002871,2.3,236.2,236.1,16.5216109]
[1733528003870,4.4131,236.2,236.14,2.1136]
[1733528004066,1.2726,236.27,236.14,16.5216109]
[1733528004375,2.3,236.26,236.14,16.5216109]
[1733528004573,4.4126,236.26,236.14,16.5216109]
[1733528004773,4.4126,236.26,236.06,16.5216109]
[1733528004774,2.3,236.27,236.18,16.5216109]
[1733528007371,2.3,236.27,236.15,2.6169]
[1733528007564,2.3,236.27,236.09,16.5216109]
[1733528007766,16.5216109,236.24,236.08,2.5627]
[1733528008475,2.1139,236.11,236.08,2.5627]
[1733528009277,2.1139,236.12,236.08,2.5627]
[1733528009873,2.1137,236.14,236.08,2.5627]
[1733528010473,16.5216109,236.24,236.08,2.5627]
[1733528010474,2.1134,236.17,236.08,2.5627]
[1733528010673,2.3,236.19,236.09,16.5216109]
[1733528011274,1.2921,236.25,236.1,2.3]
[1733528011480,2.3,236.24,236.13,16.5216109]
[1733528012274,1.3299,236.26,236.13,16.5216109]
[1733528012474,2.3,236.25,236.13,16.5216109]
[1733528012773,2.1129,236.23,236.18,2.1132]
[1733528013174,286.0,236.47,236.17,16.5216109]
[1733528013379,16.5216109,236.43,236.26,2.1125]
[1733528013676,16.5216109,236.43,236.21,16.5216109]
[1733528013677,1.3741,236.42,236.22,1.2821]
[1733528013881,2.3,236.41,236.22,1.2821]
[1733528014071,2.3,236.41,236.25,16.5216109]
[1733528014277,1.3741,236.42,236.25,18.8216109]
[1733528014471,2.1117,236.36,236.3,2.1122]
[1733528014676,2.1117,236.36,236.25,18.8216109]
[1733528015377,2.3,236.39,236.25,18.8216109]
[1733528015578,1.3741,236.42,236.25,18.8216109]
[1733528015884,2.3,236.41,236.28,2.1123]
[1733528016179,2.3,236.41,236.25,18.8216109]
[1733528016180,2.112,236.33,236.25,18.8216109]
[1733528016380,2.3,236.36,236.25,16.5216109]
[1733528016581,2.1119,236.33,236.25,16.5216109]
[1733528017476,2.3,236.36,236.25,16.5216109]
[1733528017679,2.1119,236.34,236.25,16.5216109]
[1733528017982,2.3,236.36,236.25,16.5216109]
[1733528018983,2.1119,236.33,236.25,16.5216109]
[1733528019184,2.3,236.36,236.25,16.5216109]
[1733528020880,2.1118,236.34,236.25,16.5216109]
[1733528021381,2.3,236.36,236.25,16.5216109]
[1733528021382,2.1118,236.35,236.29,2.1122]
[1733528022084,2.3,236.36,236.29,2.1122]
[1733528022289,2.1119,236.34,236.29,2.1122]
[1733528022475,2.3,236.36,236.28,2.1124]
[1733528023281,2.3,236.36,236.25,16.5216109]
[1733528024382,2.3,236.36,236.25,18.6342109]
[1733528024584,2.3,236.36,236.22,1.2821]
[1733528026281,2.3,236.36,236.19,1.3703]
[1733528026282,18.8216109,236.36,236.19,1.3703]
[1733528026677,18.8216109,236.36,236.17,16.5216109]
[1733528027082,18.8216109,236.36,236.17,18.6350109]
[1733528027784,2.113,236.22,236.18,3.5174]
[1733528029983,2.3,236.26,236.2,2.1131]
[1733528030988,16.5216109,236.36,236.22,2.1129]
[1733528030989,2.3,236.3,236.22,2.1129]
[1733528031384,2.1125,236.27,236.18,2.6875]
[1733528031690,2.1125,236.27,236.23,2.1128]
[1733528032288,2.3,236.3,236.18,2.6875]
[1733528032689,2.3,236.3,236.2,2.1131]
[1733528033086,2.3,236.3,236.18,2.6875]
[1733528033691,2.1127,236.25,236.2,2.113]
[1733528034097,2.3,236.3,236.2,2.113]
[1733528034285,2.1125,236.27,236.21,2.113]
[1733528034491,2.3,236.3,236.21,2.113]
[1733528034691,2.3,236.3,236.18,17.9257109]
[1733528034692,1.3495,236.32,236.18,20.2257109]
[1733528034892,2.3,236.31,236.18,20.2257109]
[1733528035288,2.3,236.32,236.22,16.5216109]
[1733528035991,2.1122,236.31,236.22,16.5216109]
[1733528036395,2.112,236.33,236.28,2.1123]
[1733528036583,2.3,236.36,236.22,18.8216109]
[1733528036787,2.3,236.36,236.19,1.3671]
[1733528036987,2.3,236.36,236.19,3.6671]
[1733528037795,2.1122,236.3,236.19,3.6671]
[1733528038900,2.1122,236.3,236.26,2.1125]
[1733528039099,1.3275,236.43,236.25,16.5216109]
[1733528039292,2.3,236.38,236.25,16.5216109]
[1733528039597,2.3,236.38,236.29,2.1123]
[1733528040293,2.3,236.38,236.29,2.1122]
[1733528040697,2.3,236.38,236.25,17.8373109]
[1733528040893,2.1119,236.34,236.3,2.1122]
[1733528041292,2.3,236.38,236.25,17.8373109]
[1733528041892,2.3,236.38,236.29,2.1122]
[1733528041893,2.1118,236.35,236.29,2.1122]
[1733528042093,2.3,236.38,236.29,2.1122]
[1733528042293,2.3,236.38,236.25,17.8373109]
[1733528044097,2.3,236.38,236.25,20.1373109]
[1733528044291,2.1118,236.35,236.3,2.1121]
[1733528044595,2.3,236.38,236.25,20.1373109]
[1733528044996,2.1121,236.31,236.27,2.1124]
[1733528045198,2.3,236.38,236.25,17.8373109]
[1733528045699,2.3,236.38,236.26,2.1126]
[1733528046306,2.1123,236.29,236.25,19.9499109]
[1733528047504,2.1121,236.32,236.27,2.1124]
[1733528048199,2.1121,236.32,236.25,16.5216109]
[1733528048403,2.3,236.38,236.25,16.5216109]
[1733528048801,1.3275,236.43,236.25,16.5216109]
[1733528049004,2.1119,236.34,236.29,2.1122]
[1733528049203,1.3275,236.43,236.25,16.5216109]
[1733528049507,10.08593328,236.42,236.25,16.5216109]
[1733528049713,2.1118,236.35,236.31,2.1121]
[1733528050008,2.3,236.42,236.28,2.3]
[1733528050505,12.00906923,236.41,236.23,1.3791]
[1733528050706,4.2225,236.41,236.23,1.3791]
[1733528051107,7.78687895,236.4,236.26,2.1126]
[1733528051306,4.2225,236.41,236.23,1.3791]
[1733528051706,2.1122,236.31,236.23,1.3791]
[1733528052210,2.112,236.33,236.23,1.3791]
[1733528052409,2.3,236.37,236.23,1.3791]
[1733528052604,2.3,236.37,236.29,10.30395046]
[1733528052802,2.1119,236.34,236.31,2.1121]
[1733528054213,2.1119,236.34,236.3,2.1122]
[1733528054405,2.112,236.33,236.3,2.1122]
[1733528056416,2.1118,236.34,236.3,2.1122]
[1733528057813,2.1121,236.31,236.29,10.30395046]
[1733528058216,2.3,236.37,236.29,10.30395046]
[1733528058507,2.3,236.41,236.29,10.30395046]
[1733528058712,7.81448642,236.4,236.32,10.30395046]
[1733528058910,2.1115,236.39,236.35,2.1117]
[1733528059105,2.1115,236.39,236.32,12.60395046]
[1733528059410,2.1115,236.39,236.33,1.2928]
[1733528059613,2.1113,236.4,236.36,2.1117]
[1733528060609,2.1113,236.4,236.37,2.1116]
[1733528060816,2.3,236.48,236.38,10.30395046]
[1733528061015,7.8169803,236.47,236.38,10.30395046]
[1733528061211,7.8169803,236.47,236.41,2.1112]
[1733528061212,2.1109,236.45,236.41,2.1112]
[1733528061414,2.3,236.49,236.41,10.30395046]
[1733528061617,7.81437682,236.48,236.41,10.30395046]
[1733528061815,2.3,236.49,236.41,10.30395046]
[1733528062217,2.3,236.49,236.38,10.30395046]
[1733528062413,2.3,236.49,236.41,10.30395046]
[1733528062808,2.1108,236.46,236.37,2.3]
[1733528063113,2.1108,236.46,236.4,10.30395046]
[1733528063713,2.1107,236.47,236.43,2.111]
[1733528064216,2.1108,236.46,236.42,2.111]
[1733528064819,2.1108,236.46,236.43,2.111]
[1733528065012,44.0,236.64,236.43,10.30395046]
[1733528065209,2.1104,236.51,236.44,2.6228]
[1733528065413,2.1104,236.51,236.46,10.30395046]
[1733528065807,2.3,236.54,236.46,10.30395046]
[1733528066029,2.3,236.54,236.44,1.3024]
[1733528066218,2.3,236.54,236.43,10.30395046]
[1733528066714,7.79894297,236.53,236.43,10.30395046]
[1733528067718,7.79894297,236.53,236.34,2.615]
[1733528067719,10.30395046,236.52,236.4,10.30395046]
[1733528067920,11.67905046,236.52,236.37,10.30395046]
[1733528068318,10.30395046,236.49,236.37,10.30395046]
[1733528068620,2.3,236.48,236.37,10.30395046]
[1733528068816,2.3,236.48,236.34,12.91895046]
[1733528069017,10.30395046,236.46,236.34,1.3024]
[1733528069215,10.30395046,236.43,236.31,10.30395046]
[1733528069416,2.112,236.33,236.28,12.41635046]
[1733528069919,2.1118,236.34,236.29,2.1123]
[1733528070416,2.1118,236.34,236.28,10.30395046]
[1733528071624,2.1118,236.34,236.3,2.1122]
[1733528071925,2.1118,236.34,236.28,10.30395046]
[1733528072130,2.1118,236.34,236.3,2.1122]
[1733528072628,2.1116,236.37,236.28,10.30395046]
[1733528072825,2.1116,236.37,236.31,10.30395046]
[1733528073636,2.1116,236.37,236.33,2.1119]
[1733528075728,3.6513,236.42,236.27,2.3]
[1733528075929,3.6513,236.42,236.29,10.30395046]
[1733528076232,3.6513,236.42,236.32,10.30395046]
[1733528076431,2.1116,236.37,236.32,10.30395046]
[1733528077528,2.1115,236.39,236.35,2.1117]
[1733528077732,2.1115,236.39,236.36,10.30395046]
[1733528078325,2.1112,236.41,236.37,2.1115]
[1733528079529,2.3,236.42,236.37,2.1115]
[1733528079727,2.1113,236.4,236.37,2.1115]
[1733528080737,4.4112,236.42,236.37,2.1115]
[1733528081536,4.4112,236.42,236.38,2.1114]
[1733528081736,2.3,236.46,236.36,10.30395046]